lending/lending_fUSD_20240710
["ID","MTS","AMOUNT","RATE_DAILY","PERIOD"]
[331662204,1720608656750,-598.83,0.00013863,2]
[331662205,1720608656760,-787.42,0.00013863,2]
[331662206,1720608656770,-343.99206948,0.00013863,2]
[331662207,1720608656779,-828.56,0.00013863,2]
[331662208,1720608656789,-554.17,0.00013863,2]
[331662209,1720608656799,-510.31,0.00013863,2]
[331662210,1720608656810,-500.0,0.00013863,2]
[331662211,1720608656820,-500.0,0.00013863,2]
[331662212,1720608656829,-500.0,0.00013863,2]
[331662213,1720608656839,-500.0,0.00013863,2]
[331662214,1720608656848,-500.0,0.00013863,2]
[331662215,1720608656859,-610.62,0.00013863,2]
[331662216,1720608656868,-500.0,0.00013863,2]
[331662217,1720608656878,-500.0,0.00013863,2]
[331662218,1720608656887,-745.25,0.00013863,2]
[331662219,1720608656897,-500.0,0.00013863,2]
[331662220,1720608656907,-1000.0,0.00013863,2]
[331662221,1720608656916,-500.0,0.00013863,2]
[331662222,1720608656926,-160.41224629,0.00013863,2]
[331662223,1720608656936,-500.0,0.00013863,2]
[331662224,1720608656945,-500.0,0.00013863,2]
[331662225,1720608656956,-500.0,0.00013863,2]
[331662226,1720608656966,-710.99,0.00013863,2]
[331662227,1720608656976,-500.0,0.00013863,2]
[331662228,1720608656985,-500.0,0.00013863,2]
[331662229,1720608656995,-338.48162936,0.00013863,2]
[331662230,1720608657004,-369.17431408,0.00013863,2]
[331662231,1720608657014,-500.0,0.00013863,2]
[331662232,1720608657024,-714.31,0.00013863,2]
[331662233,1720608657034,-514.45,0.00013863,2]
[331662234,1720608657043,-775.15,0.00013863,2]
[331662235,1720608657054,-500.0,0.00013863,2]
[331662236,1720608657064,-503.21,0.00013863,2]
[331662237,1720608657073,-500.0,0.00013863,2]
[331662238,1720608657086,-562.51,0.00013863,2]
[331662239,1720608657096,-500.0,0.00013863,2]
[331662240,1720608657106,-500.0,0.00013863,2]
[331662241,1720608657116,-500.0,0.00013863,2]
[331662242,1720608657126,-500.0,0.00013863,2]
[331662243,1720608657135,-806.89,0.00013863,2]
[331662244,1720608657145,-678.81,0.00013863,2]
[331662245,1720608657155,-500.0,0.00013863,2]
[331662246,1720608657164,-564.08,0.00013863,2]
[331662247,1720608657175,-500.0,0.00013863,2]
[331662248,1720608657185,-500.0,0.00013863,2]
[331662249,1720608657195,-500.0,0.00013863,2]
[331662250,1720608657206,-500.0,0.00013863,2]
[331662251,1720608657216,-500.0,0.00013863,2]
[331662252,1720608657226,-151.93939975,0.00013863,2]
[331662253,1720608657236,-254.01,0.00013863,2]
[331662254,1720608657246,-677.79,0.00013863,2]
[331662255,1720608657257,-500.0,0.00013863,2]
[331662256,1720608657267,-500.0,0.00013863,2]
[331662257,1720608657277,-500.0,0.00013863,2]
[331662258,1720608657287,-500.0,0.00013863,2]
[331662259,1720608657297,-500.0,0.00013863,2]
[331662260,1720608657307,-500.0,0.00013863,2]
[331662261,1720608657317,-500.0,0.00013863,2]
[331662262,1720608657327,-340.96158535,0.00013863,2]
[331662263,1720608657338,-500.0,0.00013863,2]
[331662264,1720608657348,-239.49598273,0.00013863,2]
[331662265,1720608657358,-534.3,0.00013863,2]
[331662266,1720608657369,-500.0,0.00013863,2]
[331662267,1720608657380,-609.5,0.00013863,2]
[331662268,1720608657390,-500.0,0.00013863,2]
[331662269,1720608657400,-522.35,0.00013863,2]
[331662270,1720608657412,-500.0,0.00013863,2]
[331662271,1720608657422,-500.0,0.00013863,2]
[331662272,1720608657433,-573.41,0.00013863,2]
[331662273,1720608657443,-500.0,0.00013863,2]
[331662274,1720608657453,-500.0,0.00013863,2]
[331662275,1720608657463,-500.0,0.00013863,2]
[331662276,1720608657473,-500.0,0.00013863,2]
[331662277,1720608657483,-500.0,0.00013863,2]
[331662278,1720608657493,-500.0,0.00013863,2]
[331662279,1720608657503,-500.0,0.00013863,2]
[331662280,1720608657515,-500.0,0.00013863,2]
[331662281,1720608657524,-500.0,0.00013863,2]
[331662282,1720608657535,-500.0,0.00013863,2]
[331662283,1720608657545,-500.0,0.00013863,2]
[331662284,1720608657554,-500.0,0.00013863,2]
[331662285,1720608657565,-549.95,0.00013863,2]
[331662286,1720608657574,-560.46863598,0.00013863,2]
[331662287,1720608657584,-500.0,0.00013863,2]
[331662288,1720608657595,-500.0,0.00013863,2]
[331662289,1720608657605,-1006.27,0.00013863,2]
[331662290,1720608657615,-500.0,0.00013863,2]
[331662291,1720608657627,-500.0,0.00013863,2]
[331662292,1720608657638,-500.0,0.00013863,2]
[331662293,1720608657648,-500.0,0.00013863,2]
[331662294,1720608657658,-586.59,0.00013863,2]
[331662295,1720608657668,-681.35,0.00013863,2]
[331662296,1720608657678,-763.77,0.00013863,2]
[331662297,1720608657688,-517.62,0.00013863,2]
[331662298,1720608657698,-503.96,0.00013863,2]
[331662299,1720608657708,-500.0,0.00013863,2]
[331662300,1720608657717,-587.79165875,0.00013863,2]
[331662301,1720608657726,-500.0,0.00013863,2]
[331662302,1720608657735,-500.0,0.00013863,2]
[331662303,1720608657745,-500.0,0.00013863,2]
[331662304,1720608657756,-500.0,0.00013863,2]
[331662305,1720608657765,-500.0,0.00013863,2]
[331662306,1720608657774,-500.0,0.00013863,2]
[331662307,1720608657784,-500.0,0.00013863,2]
[331662308,1720608657793,-602.22,0.00013863,2]
[331662309,1720608657803,-500.0,0.00013863,2]
[331662310,1720608657812,-500.0,0.00013863,2]
[331662311,1720608657822,-500.0,0.00013863,2]
[331662312,1720608657832,-500.0,0.00013863,2]
[331662313,1720608657842,-500.0,0.00013863,2]
[331662314,1720608657852,-500.0,0.00013863,2]
[331662315,1720608657862,-500.0,0.00013863,2]
[331662316,1720608657872,-500.0,0.00013863,2]
[331662317,1720608657882,-500.0,0.00013863,2]
[331662318,1720608657892,-594.67,0.00013863,2]
[331662319,1720608657903,-500.0,0.00013863,2]
[331662320,1720608657913,-657.27,0.00013863,2]
[331662321,1720608657923,-500.0,0.00013863,2]
[331662322,1720608657933,-500.0,0.00013863,2]
[331662323,1720608657943,-500.0,0.00013863,2]
[331662324,1720608657953,-500.0,0.00013863,2]
[331662325,1720608657963,-500.0,0.00013863,2]
[331662326,1720608657973,-801.09,0.00013863,2]
[331662327,1720608657983,-500.0,0.00013863,2]
[331662328,1720608657993,-1057.1,0.00013863,2]
[331662329,1720608658004,-500.0,0.00013863,2]
[331662330,1720608658016,-500.0,0.00013863,2]
[331662331,1720608658026,-500.0,0.00013863,2]
[331662332,1720608658037,-517.53,0.00013863,2]
[331662333,1720608658047,-500.0,0.00013863,2]
[331662334,1720608658056,-500.0,0.00013863,2]
[331662335,1720608658067,-500.0,0.00013863,2]
[331662336,1720608658076,-500.0,0.00013863,2]
[331662337,1720608658086,-551.92,0.00013863,2]
[331662338,1720608658096,-583.49,0.00013863,2]
[331662339,1720608658106,-500.0,0.00013863,2]
[331662340,1720608658115,-500.0,0.00013863,2]
[331662341,1720608658126,-500.0,0.00013863,2]
[331662342,1720608658135,-500.0,0.00013863,2]
[331662343,1720608658145,-500.0,0.00013863,2]
[331662344,1720608658155,-500.0,0.00013863,2]
[331662345,1720608658166,-500.0,0.00013863,2]
[331662346,1720608658175,-500.0,0.00013863,2]
[331662347,1720608658187,-500.0,0.00013863,2]
[331662348,1720608658197,-500.0,0.00013863,2]
[331662349,1720608658207,-500.0,0.00013863,2]
[331662350,1720608658217,-500.0,0.00013863,2]
[331662351,1720608658227,-500.0,0.00013863,2]
[331662352,1720608658237,-654.57,0.00013863,2]
[331662353,1720608658247,-631.51,0.00013863,2]
[331662354,1720608658258,-751.82,0.00013863,2]
[331662355,1720608658267,-392.42110838,0.00013863,2]
[331662356,1720608658277,-500.0,0.00013863,2]
[331662357,1720608658287,-500.0,0.00013863,2]
[331662358,1720608658297,-500.0,0.00013863,2]
[331662359,1720608658306,-500.0,0.00013863,2]
[331662360,1720608658316,-500.0,0.00013863,2]
[331662361,1720608658326,-500.0,0.00013863,2]
[331662362,1720608658336,-674.68,0.00013863,2]
[331662363,1720608658345,-500.0,0.00013863,2]
[331662364,1720608658355,-500.0,0.00013863,2]
[331662365,1720608658364,-500.0,0.00013863,2]
[331662366,1720608658374,-500.0,0.00013863,2]
[331662367,1720608658384,-615.24,0.00013863,2]
[331662368,1720608658393,-595.84761561,0.00013863,2]
[331662369,1720608658403,-1222.95,0.00013863,2]
[331662370,1720608658414,-787.16,0.00013863,2]
[331662371,1720608658423,-500.0,0.00013863,2]
[331662372,1720608658433,-500.0,0.00013863,2]
[331662373,1720608658443,-500.0,0.00013863,2]
[331662374,1720608658452,-500.0,0.00013863,2]
[331662375,1720608658462,-698.98,0.00013863,2]
[331662376,1720608658473,-500.0,0.00013863,2]
[331662377,1720608658483,-629.07206186,0.00013863,2]
[331662378,1720608658493,-500.0,0.00013863,2]
[331662379,1720608658503,-500.0,0.00013863,2]
[331662380,1720608658513,-500.0,0.00013863,2]
[331662381,1720608658523,-500.0,0.00013863,2]
[331662382,1720608658534,-500.0,0.00013863,2]
[331662383,1720608658543,-500.0,0.00013863,2]
[331662384,1720608658552,-500.0,0.00013863,2]
[331662385,1720608658562,-500.0,0.00013863,2]
[331662386,1720608658572,-500.0,0.00013863,2]
[331662387,1720608658582,-714.67,0.00013863,2]
[331662388,1720608658591,-2867.72,0.00013863,2]
[331662389,1720608658601,-500.0,0.00013863,2]
[331662390,1720608658610,-500.0,0.00013863,2]
[331662391,1720608658620,-500.0,0.00013863,2]
[331662392,1720608658631,-500.0,0.00013863,2]
[331662393,1720608658640,-312.91737649,0.00013863,2]
[331662394,1720608658650,-787.67,0.00013863,2]
[331662395,1720608658659,-500.0,0.00013863,2]
[331662396,1720608658669,-500.0,0.00013863,2]
[331662397,1720608658679,-500.0,0.00013863,2]
[331662398,1720608658688,-500.0,0.00013863,2]
[331662399,1720608658698,-500.0,0.00013863,2]
[331662400,1720608658707,-500.0,0.00013863,2]
[331662401,1720608658717,-500.0,0.00013863,2]
[331662402,1720608658727,-551.68,0.00013863,2]
[331662403,1720608658737,-500.0,0.00013863,2]
[331662404,1720608658747,-555.9,0.00013863,2]
[331662405,1720608658756,-500.0,0.00013863,2]
[331662406,1720608658765,-500.0,0.00013863,2]
[331662407,1720608658774,-500.0,0.00013863,2]
[331662408,1720608658783,-500.0,0.00013863,2]
[331662409,1720608658793,-500.0,0.00013863,2]
[331662410,1720608658803,-500.0,0.00013863,2]
[331662411,1720608658813,-500.0,0.00013863,2]
[331662412,1720608658823,-500.0,0.00013863,2]
[331662413,1720608658832,-500.0,0.00013863,2]
[331662414,1720608658843,-500.0,0.00013863,2]
[331662415,1720608658852,-1029.44,0.00013863,2]
[331662416,1720608658862,-502.63,0.00013863,2]
[331662417,1720608658872,-765.91,0.00013863,2]
[331662418,1720608658882,-2842.88,0.00013863,2]
[331662419,1720608658891,-908.63,0.00013863,2]
[331662420,1720608658900,-500.0,0.00013863,2]
[331662421,1720608658910,-500.0,0.00013863,2]
[331662422,1720608658919,-500.0,0.00013863,2]
[331662423,1720608659017,-500.0,0.00013863,2]
[331662424,1720608659027,-500.0,0.00013863,2]
[331662425,1720608659038,-1702.55,0.00013863,2]
[331662426,1720608659048,-500.0,0.00013863,2]
[331662427,1720608659057,-500.0,0.00013863,2]
[331662428,1720608659067,-500.0,0.00013863,2]
[331662429,1720608659076,-500.0,0.00013863,2]
[331662430,1720608659085,-500.0,0.00013863,2]
[331662431,1720608659095,-911.33,0.00013863,2]
[331662432,1720608659104,-500.0,0.00013863,2]
[331662433,1720608659114,-500.0,0.00013863,2]
[331662434,1720608659124,-500.0,0.00013863,2]
[331662435,1720608659134,-260.52449626,0.00013863,2]
[331662436,1720608659144,-500.78,0.00013863,2]
[331662437,1720608659154,-500.0,0.00013863,2]
[331662438,1720608659164,-500.0,0.00013863,2]
[331662439,1720608659174,-500.0,0.00013863,2]
[331662440,1720608659183,-1415.85,0.00013863,2]
[331662441,1720608659192,-751.01,0.00013863,2]
[331662442,1720608659201,-500.0,0.00013863,2]
[331662443,1720608659211,-500.0,0.00013863,2]
[331662444,1720608659220,-500.0,0.00013863,2]
[331662445,1720608659229,-500.0,0.00013863,2]
[331662446,1720608659239,-500.0,0.00013863,2]
[331662447,1720608659248,-500.0,0.00013863,2]
[331662448,1720608659257,-641.64,0.00013863,2]
[331662449,1720608659267,-1080.18,0.00013863,2]
[331662450,1720608659276,-500.0,0.00013863,2]
[331662451,1720608659285,-500.0,0.00013863,2]
[331662452,1720608659294,-659.88,0.00013863,2]
[331662453,1720608659304,-500.0,0.00013863,2]
[331662454,1720608659313,-500.0,0.00013863,2]
[331662455,1720608659323,-500.0,0.00013863,2]
[331662456,1720608659332,-500.0,0.00013863,2]
[331662457,1720608659342,-501.14185122,0.00013863,2]
[331662458,1720608659351,-500.0,0.00013863,2]
[331662459,1720608659361,-500.0,0.00013863,2]
[331662460,1720608659371,-1073.79,0.00013863,2]
[331662461,1720608659380,-500.0,0.00013863,2]
[331662462,1720608659390,-500.0,0.00013863,2]
[331662463,1720608659399,-500.0,0.00013863,2]
[331662464,1720608659408,-500.0,0.00013863,2]
[331662465,1720608659418,-500.0,0.00013863,2]
[331662466,1720608659427,-500.0,0.00013863,2]
[331662467,1720608659436,-500.0,0.00013863,2]
[331662468,1720608659446,-500.0,0.00013863,2]
[331662469,1720608659455,-500.0,0.00013863,2]
[331662470,1720608659464,-598.63,0.00013863,2]
[331662471,1720608659473,-500.0,0.00013863,2]
[331662472,1720608659482,-500.0,0.00013863,2]
[331662473,1720608659491,-500.0,0.00013863,2]
[331662474,1720608659500,-500.0,0.00013863,2]
[331662475,1720608659510,-500.0,0.00013863,2]
[331662476,1720608659520,-1551.9,0.00013863,2]
[331662477,1720608659529,-500.0,0.00013863,2]
[331662478,1720608659538,-500.0,0.00013863,2]
[331662479,1720608659547,-729.59,0.00013863,2]
[331662480,1720608659556,-500.0,0.00013863,2]
[331662481,1720608659565,-500.0,0.00013863,2]
[331662482,1720608659574,-500.0,0.00013863,2]
[331662483,1720608659583,-543.19,0.00013863,2]
[331662484,1720608659591,-500.0,0.00013863,2]
[331662485,1720608659600,-500.0,0.00013863,2]
[331662486,1720608659609,-663.03,0.00013863,2]
[331662487,1720608659619,-500.0,0.00013863,2]
[331662488,1720608659629,-749.17,0.00013863,2]
[331662489,1720608659639,-500.0,0.00013863,2]
[331662490,1720608659649,-540.55,0.00013863,2]
[331662491,1720608659658,-500.0,0.00013863,2]
[331662492,1720608659667,-500.0,0.00013863,2]
[331662493,1720608659675,-500.0,0.00013863,2]
[331662494,1720608659684,-500.0,0.00013863,2]
[331662495,1720608659694,-717.82,0.00013863,2]
[331662496,1720608659703,-500.0,0.00013863,2]
[331662497,1720608659712,-500.0,0.00013863,2]
[331662498,1720608659721,-500.0,0.00013863,2]
[331662499,1720608659730,-500.0,0.00013863,2]
[331662500,1720608659740,-1078.84,0.00013863,2]
[331662501,1720608659748,-500.0,0.00013863,2]
[331662502,1720608659759,-675.43,0.00013863,2]
[331662503,1720608659767,-377.1925071,0.00013863,2]
[331662504,1720608659776,-827.12,0.00013863,2]
[331662505,1720608659785,-551.14621777,0.00013863,2]
[331662506,1720608659794,-500.0,0.00013863,2]
[331662507,1720608659805,-500.0,0.00013863,2]
[331662508,1720608659815,-500.0,0.00013863,2]
[331662509,1720608659824,-500.0,0.00013863,2]
[331662510,1720608659834,-892.74,0.00013863,2]
[331662511,1720608659843,-577.71,0.00013863,2]
[331662512,1720608659852,-500.0,0.00013863,2]
[331662513,1720608659861,-500.0,0.00013863,2]
[331662514,1720608659871,-500.0,0.00013863,2]
[331662515,1720608659880,-500.0,0.00013863,2]
[331662516,1720608659890,-500.0,0.00013863,2]
[331662517,1720608659899,-500.0,0.00013863,2]
[331662518,1720608659908,-973.9,0.00013863,2]
[331662519,1720608659917,-601.55,0.00013863,2]
[331662520,1720608659927,-5008.47,0.00013863,2]
[331662521,1720608659936,-500.0,0.00013863,2]
[331662522,1720608659945,-500.0,0.00013863,2]
[331662523,1720608659954,-539.78,0.00013863,2]
[331662524,1720608659964,-931.01,0.00013863,2]
[331662525,1720608659973,-714.68,0.00013863,2]
[331662526,1720608659983,-500.0,0.00013863,2]
[331662527,1720608659992,-858.4,0.00013863,2]
[331662528,1720608660001,-673.12,0.00013863,2]
[331662529,1720608660015,-500.0,0.00013863,2]
[331662530,1720608660024,-604.93,0.00013863,2]
[331662531,1720608660034,-500.0,0.00013863,2]
[331662532,1720608660044,-500.0,0.00013863,2]
[331662533,1720608660054,-566.86,0.00013863,2]
[331662534,1720608660064,-500.0,0.00013863,2]
[331662535,1720608660073,-500.0,0.00013863,2]
[331662536,1720608660084,-500.0,0.00013863,2]
[331662537,1720608660093,-714.84,0.00013863,2]
[331662538,1720608660102,-500.0,0.00013863,2]
[331662539,1720608660112,-500.0,0.00013863,2]
[331662540,1720608660122,-937.91,0.00013863,2]
[331662541,1720608660131,-500.0,0.00013863,2]
[331662542,1720608660140,-500.0,0.00013863,2]
[331662543,1720608660149,-500.0,0.00013863,2]
[331662544,1720608660159,-188.71885721,0.00013863,2]
[331662545,1720608660169,-647.47930836,0.00013863,2]
[331662546,1720608660178,-500.0,0.00013863,2]
[331662547,1720608660188,-610.65,0.00013863,2]
[331662548,1720608660197,-500.0,0.00013863,2]
[331662549,1720608660207,-500.0,0.00013863,2]
[331662550,1720608660216,-505.26,0.00013863,2]
[331662551,1720608660226,-500.0,0.00013863,2]
[331662552,1720608660235,-500.0,0.00013863,2]
[331662553,1720608660245,-652.88,0.00013863,2]
[331662554,1720608660254,-500.0,0.00013863,2]
[331662555,1720608660267,-500.0,0.00013863,2]
[331662556,1720608660276,-150.0,0.00013865,2]
[331662557,1720608660286,-150.0,0.00013865,2]
[331662558,1720608660295,-150.0,0.00013872,2]
[331662559,1720608660305,-156.60592487,0.00013872,2]
[331662560,1720608660314,-150.0,0.00013874,2]
[331662561,1720608660323,-354.82287898,0.00013881,2]
[331662562,1720608660333,-150.0,0.00013882,2]
[331662563,1720608660342,-150.0,0.00013886,2]
[331662564,1720608660351,-150.0,0.00013886,2]
[331662565,1720608660360,-150.0,0.00013886,2]
[331662566,1720608660370,-150.0,0.00013887,2]
[331662567,1720608660379,-500.0,0.00013888,2]
[331662568,1720608660388,-200.0,0.00013888,2]
[331662569,1720608660397,-150.0,0.00013888,2]
[331662570,1720608660406,-234.41661511,0.00013889,2]
[331662571,1720608660416,-155.40245822,0.00013889,2]
[331662572,1720608660425,-150.0,0.00013899,2]
[331662573,1720608660434,-16000.0,0.000139,2]
[331662574,1720608660444,-28798.36795695,0.000139,2]
[331662575,1720608660453,-593.90076455,0.000139,2]
[331662576,1720608660462,-246.57607614,0.000139,2]
[331662577,1720608660471,-150.0,0.00013905,2]
[331662578,1720608660480,-521.6,0.00013917,2]
[331662579,1720608660489,-500.0,0.00013917,2]
[331662580,1720608660498,-420.39721385,0.00013917,2]
[331662581,1720608660510,-500.0,0.00013917,2]
[331662582,1720608660519,-500.0,0.00013917,2]
[331662583,1720608660528,-500.0,0.00013917,2]
[331662584,1720608660537,-500.0,0.00013917,2]
[331662585,1720608660546,-500.0,0.00013917,2]
[331662586,1720608660556,-500.0,0.00013917,2]
[331662587,1720608660564,-500.0,0.00013917,2]
[331662588,1720608660574,-500.0,0.00013917,2]
[331662589,1720608660583,-500.0,0.00013917,2]
[331662590,1720608660593,-500.0,0.00013917,2]
[331662591,1720608660603,-224.69965542,0.00013917,2]
[331662592,1720608660615,-500.0,0.00013917,2]
[331662593,1720608660626,-611.07,0.00013917,2]
[331662594,1720608660637,-500.0,0.00013917,2]
[331662595,1720608660648,-500.0,0.00013917,2]
[331662596,1720608660658,-500.0,0.00013917,2]
[331662597,1720608660669,-500.0,0.00013917,2]
[331662598,1720608660680,-500.0,0.00013917,2]
[331662599,1720608660690,-500.0,0.00013917,2]
[331662600,1720608660699,-500.0,0.00013917,2]
[331662601,1720608660708,-633.39025426,0.00013917,2]
[331662602,1720608660717,-500.0,0.00013917,2]
[331662603,1720608660726,-500.0,0.00013917,2]
[331662604,1720608660735,-574.97,0.00013917,2]
[331662605,1720608660744,-500.0,0.00013917,2]
[331662606,1720608660754,-500.0,0.00013917,2]
[331662607,1720608660767,-254.96318398,0.00013917,2]
[331662608,1720608660776,-500.0,0.00013917,2]
[331662609,1720608660785,-500.0,0.00013917,2]
[331662610,1720608660797,-500.0,0.00013917,2]
[331662611,1720608660808,-500.0,0.00013917,2]
[331662612,1720608660817,-500.0,0.00013917,2]
[331662613,1720608660827,-500.0,0.00013917,2]
[331662614,1720608660836,-500.0,0.00013917,2]
[331662615,1720608660845,-500.0,0.00013917,2]
[331662616,1720608660854,-500.0,0.00013917,2]
[331662617,1720608660863,-46.40922524,0.00013917,2]
[331662618,1720608660890,-453.59077476,0.00013917,2]
[331662619,1720608660900,-500.0,0.00013917,2]
[331662620,1720608660909,-500.0,0.00013917,2]
[331662621,1720608660919,-500.0,0.00013917,2]
[331662622,1720608660927,-500.0,0.00013917,2]
[331662623,1720608660936,-500.0,0.00013917,2]
[331662624,1720608660946,-506.46,0.00013917,2]
[331662625,1720608660955,-500.0,0.00013917,2]
[331662626,1720608660964,-500.0,0.00013917,2]
[331662627,1720608660973,-500.0,0.00013917,2]
[331662628,1720608660983,-500.0,0.00013917,2]
[331662629,1720608660992,-500.0,0.00013917,2]
[331662630,1720608661001,-1243.95,0.00013917,2]
[331662631,1720608661016,-500.0,0.00013917,2]
[331662632,1720608661026,-514.21,0.00013917,2]
[331662633,1720608661035,-500.0,0.00013917,2]
[331662634,1720608661045,-594.74,0.00013917,2]
[331662635,1720608661054,-500.0,0.00013917,2]
[331662636,1720608661064,-500.0,0.00013917,2]
[331662637,1720608661073,-500.0,0.00013917,2]
[331662638,1720608661083,-647.19729928,0.00013917,2]
[331662639,1720608661093,-500.0,0.00013917,2]
[331662640,1720608661102,-500.0,0.00013917,2]
[331662641,1720608661111,-500.0,0.00013917,2]
[331662642,1720608661120,-500.0,0.00013917,2]
[331662643,1720608661130,-500.0,0.00013917,2]
[331662644,1720608661140,-500.0,0.00013917,2]
[331662645,1720608661150,-710.6,0.00013917,2]
[331662646,1720608661160,-500.0,0.00013917,2]
[331662647,1720608661170,-500.0,0.00013917,2]
[331662648,1720608661179,-500.0,0.00013917,2]
[331662649,1720608661190,-717.74,0.00013917,2]
[331662650,1720608661200,-500.0,0.00013917,2]
[331662651,1720608661210,-500.0,0.00013917,2]
[331662652,1720608661219,-500.0,0.00013917,2]
[331662653,1720608661228,-500.0,0.00013917,2]
[331662654,1720608661237,-500.0,0.00013917,2]
[331662655,1720608661246,-500.0,0.00013917,2]
[331662656,1720608661258,-354.0952089,0.00013917,2]
[331662657,1720608661268,-71.14064072,0.00013917,2]
[331662658,1720608661281,-428.85935928,0.00013917,2]
[331662659,1720608661290,-500.0,0.00013917,2]
[331662660,1720608661299,-500.0,0.00013917,2]
[331662661,1720608661308,-500.0,0.00013917,2]
[331662662,1720608661318,-529.0,0.00013917,2]
[331662663,1720608661329,-887.15,0.00013917,2]
[331662664,1720608661340,-500.0,0.00013917,2]
[331662665,1720608661350,-500.0,0.00013917,2]
[331662666,1720608661360,-500.0,0.00013917,2]
[331662667,1720608661370,-772.64,0.00013917,2]
[331662668,1720608661379,-170.65064072,0.00013917,2]
[331662669,1720608661391,-329.34935928,0.00013917,2]
[331662670,1720608661400,-500.0,0.00013917,2]
[331662671,1720608661411,-548.7,0.00013917,2]
[331662672,1720608661421,-190.24616903,0.00013917,2]
[331662673,1720608661433,-373.08383097,0.00013917,2]
[331662674,1720608661442,-500.0,0.00013917,2]
[331662675,1720608661451,-86.32536341,0.00013917,2]
[331662676,1720608661463,-413.67463659,0.00013917,2]
[331662677,1720608661472,-180.91620054,0.00013917,2]
[331662678,1720608661484,-319.08379946,0.00013917,2]
[331662679,1720608661494,-500.0,0.00013917,2]
[331662680,1720608661508,-500.0,0.00013917,2]
[331662681,1720608661517,-500.0,0.00013917,2]
[331662682,1720608661527,-500.0,0.00013917,2]
[331662683,1720608661536,-632.96,0.00013917,2]
[331662684,1720608661545,-500.0,0.00013917,2]
[331662685,1720608661555,-500.0,0.00013917,2]
[331662686,1720608661564,-500.0,0.00013917,2]
[331662687,1720608661574,-500.0,0.00013917,2]
[331662688,1720608661583,-570.77,0.00013917,2]
[331662689,1720608661592,-81.41488879,0.00013917,2]
[331662690,1720608661604,-418.58511121,0.00013917,2]
[331662691,1720608661613,-500.0,0.00013917,2]
[331662692,1720608661625,-598.83,0.00013917,2]
[331662693,1720608661636,-787.42,0.00013917,2]
[331662694,1720608661645,-828.56,0.00013917,2]
[331662695,1720608661655,-554.17,0.00013917,2]
[331662696,1720608661665,-510.31,0.00013917,2]
[331662697,1720608661675,-500.0,0.00013917,2]
[331662698,1720608661684,-500.0,0.00013917,2]
[331662699,1720608661695,-327.54670626,0.00013917,2]
[331662700,1720608661716,-172.45329374,0.00013917,2]
[331662701,1720608661726,-500.0,0.00013917,2]
[331662702,1720608661736,-500.0,0.00013917,2]
[331662703,1720608661745,-610.62,0.00013917,2]